Workbook

Sheet Chart
A1: =MPC&"-Month, "&Yerms&"-Yerm Lunar Cycle Jitter" -> 360-Month, 22-Yerm Lunar Cycle Jitter
A2: ="Cycle contains "&MPC&" months ("&FMPC&" full, "&DMPC&" deficient) = "&DPC&" days = "&reducefraction(DPC,7,FALSE,FALSE,TRUE)&" weeks = "&Yerms&" yerms." -> Cycle contains 360 months (191 full, 169 deficient) = 10631 days = 1518+5/7 weeks = 22 yerms.
A3: ="Mean month = "&"29+"&reducefraction(FMPC,MPC,FALSE,FALSE,TRUE)&" days = 29d 12h 44m "&reducefraction(240*(360*FMPC-191*MPC),MPC,FALSE,FALSE,TRUE)&" seconds, or about 29"&MID(FMPC/MPC,2,20)&" days or 29d 12h 44m "&ROUND(240*(360*FMPC-191*MPC)/MPC,6)&" seconds." -> Mean month = 29+191/360 days = 29d 12h 44m 0 seconds, or about 29.530555555555556 days or 29d 12h 44m 0 seconds.
A4: ="Duration per ''Part'' = 1/"&MPC&" day = "&reducefraction(24,MPC,FALSE,FALSE,TRUE)&" hour = "&reducefraction(1440,MPC,FALSE,FALSE,TRUE)&" minutes = "&reducefraction(86400,MPC,FALSE,FALSE,TRUE)&" seconds. One hour = "&reducefraction(MPC,24,FALSE,FALSE,TRUE)&" parts." -> Duration per ''Part'' = 1/360 day = 1/15 hour = 4 minutes = 240 seconds. One hour = 15 parts.
Q9: FALSE
Q15: 1
Q16: Selected
Q17: Month
Q18: in Yerm
Q19: (1 to 17)

Sheet Data
A1: Lunar Cycle Jitter Evaluator
A2: by Dr. Irv Bromberg, University of Toronto, Canada
A3: http://individual.utoronto.ca/intervalmath/jitter/index.html | D3: Jitter | E3: (parts)
D4: =MAX(H:H) -> 183 | E4: maximum | F4: =reducefraction(JitterMax*MPC,MPC,FALSE,FALSE,FALSE) -> 183
A5: Months per Cycle (Parts per Day): | B5: 360 | C5: months (parts) | D5: =MIN(H:H) -> -176 | E5: minimum | F5: =reducefraction(JitterMin*MPC,MPC,FALSE,FALSE,FALSE) -> –(176)
A6: 30-day Months per Cycle: | B6: 191 | C6: months | D6: =D4-D5 -> 359 | E6: range | F6: =reducefraction(JitterRange*MPC,MPC,FALSE,FALSE,FALSE) -> 359
A7: 29-day Months per Cycle: | B7: =MPC-FMPC -> 169 | C7: months | D7: ="Jitter range = "&F6&" parts = "&reducefraction(F6*24,MPC,FALSE,FALSE,FALSE)&" hours" -> Jitter range = 359 parts = 23 + 14 / 15 hours
A8: Days per Cycle (Parts per Month): | B8: =29*MPC+FMPC -> 10631 | C8: days (parts)
A9: Yerms per Cycle: | B9: =2*DPC-59*MPC -> 22 | C9: yerms | D9: Limits for Chart:
A10: Mean Month: | B10: ="29 + "&reducefraction(FMPC,MPC,FALSE,FALSE,FALSE) -> 29 + 191 / 360 | C10: days | D10: x | E10: y | F10: Hours
A11: Mean Month >29d: | B11: =FMPC/MPC -> 0.530555555555556 | C11: days | D11: =C21 -> 1 | E11: =JitterMax -> 183 | F11: =E11*24/MPC -> 12.2
A12: Mean Month >29d 12h 44m: | B12: =reducefraction(240*(360*FMPC-191*MPC),MPC,FALSE,FALSE,TRUE) -> 0 | C12: seconds | D12: =2*MPC+1 -> 721 | E12: =E11 -> 183 | F12: =E12*24/MPC -> 12.2
A13: … or approximately: | B13: =240*(360*FMPC-191*MPC)/MPC -> 0 | C13: seconds
A14: Has Yerm Zero: | B14: =MeanMonth>26/49 -> FALSE | D14: =D11 -> 1 | E14: 0
A15: 17-month Yerms per Cycle: | B15: =443*MPC-15*DPC -> 15 | C15: yerms | D15: =D12 -> 721 | E15: 0
A16: 15-month Yerms per Cycle: | B16: =Yerms-n17my -> 7 | C16: yerms
A17: 49-month subcycles: | B17: =INT(Yerms/3) -> 7 | D17: =C21 -> 1 | E17: =JitterMin -> -176 | F17: =E17*24/MPC -> -11.73333333
A18: Duration per Part: | B18: =reducefraction(1440,MPC,FALSE,FALSE,FALSE) -> 4 | C18: minutes | D18: =D12 -> 721 | E18: =E17 -> -176 | F18: =E18*24/MPC -> -11.73333333
A20: Yerm in Cycle | B20: Months in Yerm | C20: Month # | D20: Month in Yerm | E20: Month Length | F20: New Month Moment | G20: Elapsed | H20: Difference
A21: 1 | B21: =IF(MOD(A21,3)=0,15,17) -> 17 | C21: 1 | D21: 1 | E21: =IF(MOD(D21,2)=1,30,29) -> 30 | F21: 0 | G21: 0 | H21: =F21-G21 -> 0
A22: =IF(D22=1,IF(A21=Yerms,1,A21+1),A21) -> 1 | B22: =IF(MOD(A22,3)=0,15,17) -> 17 | C22: =C21+1 -> 2 | D22: =IF(D21=B21,1,D21+1) -> 2 | E22: =IF(MOD(D22,2)=1,30,29) -> 29 | F22: =F21+PPM -> 10631 | G22: =G21+E21*PPD -> 10800 | H22: -169
A23: 1 | B23: 17 | C23: =C22+1 -> 3 | D23: 3 | E23: 30 | F23: =F22+PPM -> 21262 | G23: 21240 | H23: 22
A24: 1 | B24: 17 | C24: 4 | D24: 4 | E24: 29 | F24: 31893 | G24: 32040 | H24: -147
A25: 1 | B25: 17 | C25: 5 | D25: 5 | E25: 30 | F25: 42524 | G25: 42480 | H25: 44
A26: 1 | B26: 17 | C26: 6 | D26: 6 | E26: 29 | F26: 53155 | G26: 53280 | H26: -125
A27: 1 | B27: 17 | C27: 7 | D27: 7 | E27: 30 | F27: 63786 | G27: 63720 | H27: 66
A28: 1 | B28: 17 | C28: 8 | D28: 8 | E28: 29 | F28: 74417 | G28: 74520 | H28: -103
A29: 1 | B29: 17 | C29: 9 | D29: 9 | E29: 30 | F29: 85048 | G29: 84960 | H29: 88
A30: 1 | B30: 17 | C30: 10 | D30: 10 | E30: 29 | F30: 95679 | G30: 95760 | H30: -81
A31: 1 | B31: 17 | C31: 11 | D31: 11 | E31: 30 | F31: 106310 | G31: 106200 | H31: 110
A32: 1 | B32: 17 | C32: 12 | D32: 12 | E32: 29 | F32: 116941 | G32: 117000 | H32: -59
A33: 1 | B33: 17 | C33: 13 | D33: 13 | E33: 30 | F33: 127572 | G33: 127440 | H33: 132
A34: 1 | B34: 17 | C34: 14 | D34: 14 | E34: 29 | F34: 138203 | G34: 138240 | H34: -37
A35: 1 | B35: 17 | C35: 15 | D35: 15 | E35: 30 | F35: 148834 | G35: 148680 | H35: 154
A36: 1 | B36: 17 | C36: 16 | D36: 16 | E36: 29 | F36: 159465 | G36: 159480 | H36: -15
A37: 1 | B37: =IF(MOD(A37,3)=0,15,17) -> 17 | C37: 17 | D37: 17 | E37: 30 | F37: 170096 | G37: 169920 | H37: 176
A38: 2 | B38: 17 | C38: 18 | D38: 1 | E38: 30 | F38: 180727 | G38: 180720 | H38: 7
A39: 2 | B39: 17 | C39: 19 | D39: 2 | E39: 29 | F39: 191358 | G39: 191520 | H39: -162
A40: 2 | B40: 17 | C40: 20 | D40: 3 | E40: 30 | F40: 201989 | G40: 201960 | H40: 29
A41: 2 | B41: 17 | C41: 21 | D41: 4 | E41: 29 | F41: 212620 | G41: 212760 | H41: -140
A42: 2 | B42: 17 | C42: 22 | D42: 5 | E42: 30 | F42: 223251 | G42: 223200 | H42: 51
A43: 2 | B43: 17 | C43: 23 | D43: 6 | E43: 29 | F43: 233882 | G43: 234000 | H43: -118
A44: 2 | B44: 17 | C44: 24 | D44: 7 | E44: 30 | F44: 244513 | G44: 244440 | H44: 73
A45: 2 | B45: 17 | C45: 25 | D45: 8 | E45: 29 | F45: 255144 | G45: 255240 | H45: -96
A46: 2 | B46: 17 | C46: 26 | D46: 9 | E46: 30 | F46: 265775 | G46: 265680 | H46: 95
A47: 2 | B47: 17 | C47: 27 | D47: 10 | E47: 29 | F47: 276406 | G47: 276480 | H47: -74
A48: 2 | B48: 17 | C48: 28 | D48: 11 | E48: 30 | F48: 287037 | G48: 286920 | H48: 117
A49: 2 | B49: 17 | C49: 29 | D49: 12 | E49: 29 | F49: 297668 | G49: 297720 | H49: -52
A50: 2 | B50: 17 | C50: 30 | D50: 13 | E50: 30 | F50: 308299 | G50: 308160 | H50: 139
A51: 2 | B51: 17 | C51: 31 | D51: 14 | E51: 29 | F51: 318930 | G51: 318960 | H51: -30
A52: 2 | B52: 17 | C52: 32 | D52: 15 | E52: 30 | F52: 329561 | G52: 329400 | H52: 161
A53: 2 | B53: 17 | C53: 33 | D53: 16 | E53: 29 | F53: 340192 | G53: 340200 | H53: -8
A54: 2 | B54: 17 | C54: 34 | D54: 17 | E54: 30 | F54: 350823 | G54: 350640 | H54: 183
A55: 3 | B55: 15 | C55: 35 | D55: 1 | E55: 30 | F55: 361454 | G55: 361440 | H55: 14
A56: 3 | B56: 15 | C56: 36 | D56: 2 | E56: 29 | F56: 372085 | G56: 372240 | H56: -155
A57: 3 | B57: 15 | C57: 37 | D57: 3 | E57: 30 | F57: 382716 | G57: 382680 | H57: 36
A58: 3 | B58: 15 | C58: 38 | D58: 4 | E58: 29 | F58: 393347 | G58: 393480 | H58: -133
A59: 3 | B59: 15 | C59: 39 | D59: 5 | E59: 30 | F59: 403978 | G59: 403920 | H59: 58
A60: 3 | B60: 15 | C60: 40 | D60: 6 | E60: 29 | F60: 414609 | G60: 414720 | H60: -111
A61: 3 | B61: 15 | C61: 41 | D61: 7 | E61: 30 | F61: 425240 | G61: 425160 | H61: 80
A62: 3 | B62: 15 | C62: 42 | D62: 8 | E62: 29 | F62: 435871 | G62: 435960 | H62: -89
A63: 3 | B63: 15 | C63: 43 | D63: 9 | E63: 30 | F63: 446502 | G63: 446400 | H63: 102
A64: 3 | B64: 15 | C64: 44 | D64: 10 | E64: 29 | F64: 457133 | G64: 457200 | H64: -67
A65: 3 | B65: 15 | C65: 45 | D65: 11 | E65: 30 | F65: 467764 | G65: 467640 | H65: 124
A66: 3 | B66: 15 | C66: 46 | D66: 12 | E66: 29 | F66: 478395 | G66: 478440 | H66: -45
A67: 3 | B67: 15 | C67: 47 | D67: 13 | E67: 30 | F67: 489026 | G67: 488880 | H67: 146
A68: 3 | B68: 15 | C68: 48 | D68: 14 | E68: 29 | F68: 499657 | G68: 499680 | H68: -23
A69: 3 | B69: 15 | C69: 49 | D69: 15 | E69: 30 | F69: 510288 | G69: 510120 | H69: 168
A70: 4 | B70: 17 | C70: 50 | D70: 1 | E70: 30 | F70: 520919 | G70: 520920 | H70: -1
A71: 4 | B71: 17 | C71: 51 | D71: 2 | E71: 29 | F71: 531550 | G71: 531720 | H71: -170
A72: 4 | B72: 17 | C72: 52 | D72: 3 | E72: 30 | F72: 542181 | G72: 542160 | H72: 21
A73: 4 | B73: 17 | C73: 53 | D73: 4 | E73: 29 | F73: 552812 | G73: 552960 | H73: -148
A74: 4 | B74: 17 | C74: 54 | D74: 5 | E74: 30 | F74: 563443 | G74: 563400 | H74: 43
A75: 4 | B75: 17 | C75: 55 | D75: 6 | E75: 29 | F75: 574074 | G75: 574200 | H75: -126
A76: 4 | B76: 17 | C76: 56 | D76: 7 | E76: 30 | F76: 584705 | G76: 584640 | H76: 65
A77: 4 | B77: 17 | C77: 57 | D77: 8 | E77: 29 | F77: 595336 | G77: 595440 | H77: -104
A78: 4 | B78: 17 | C78: 58 | D78: 9 | E78: 30 | F78: 605967 | G78: 605880 | H78: 87
A79: 4 | B79: 17 | C79: 59 | D79: 10 | E79: 29 | F79: 616598 | G79: 616680 | H79: -82
A80: 4 | B80: 17 | C80: 60 | D80: 11 | E80: 30 | F80: 627229 | G80: 627120 | H80: 109
A81: 4 | B81: 17 | C81: 61 | D81: 12 | E81: 29 | F81: 637860 | G81: 637920 | H81: -60
A82: 4 | B82: 17 | C82: 62 | D82: 13 | E82: 30 | F82: 648491 | G82: 648360 | H82: 131
A83: 4 | B83: 17 | C83: 63 | D83: 14 | E83: 29 | F83: 659122 | G83: 659160 | H83: -38
A84: 4 | B84: 17 | C84: 64 | D84: 15 | E84: 30 | F84: 669753 | G84: 669600 | H84: 153
A85: 4 | B85: 17 | C85: 65 | D85: 16 | E85: 29 | F85: 680384 | G85: 680400 | H85: =F85-G85 -> -16
A86: =IF(D86=1,IF(A85=Yerms,1,A85+1),A85) -> 4 | B86: =IF(MOD(A86,3)=0,15,17) -> 17 | C86: 66 | D86: =IF(D85=B85,1,D85+1) -> 17 | E86: =IF(MOD(D86,2)=1,30,29) -> 30 | F86: 691015 | G86: =G85+E85*PPD -> 690840 | H86: 175
A87: 5 | B87: 17 | C87: =C86+1 -> 67 | D87: 1 | E87: 30 | F87: =F86+PPM -> 701646 | G87: 701640 | H87: 6
A88: 5 | B88: 17 | C88: 68 | D88: 2 | E88: 29 | F88: 712277 | G88: 712440 | H88: -163
A89: 5 | B89: 17 | C89: 69 | D89: 3 | E89: 30 | F89: 722908 | G89: 722880 | H89: 28
A90: 5 | B90: 17 | C90: 70 | D90: 4 | E90: 29 | F90: 733539 | G90: 733680 | H90: -141
A91: 5 | B91: 17 | C91: 71 | D91: 5 | E91: 30 | F91: 744170 | G91: 744120 | H91: 50
A92: 5 | B92: 17 | C92: 72 | D92: 6 | E92: 29 | F92: 754801 | G92: 754920 | H92: -119
A93: 5 | B93: 17 | C93: 73 | D93: 7 | E93: 30 | F93: 765432 | G93: 765360 | H93: 72
A94: 5 | B94: 17 | C94: 74 | D94: 8 | E94: 29 | F94: 776063 | G94: 776160 | H94: -97
A95: 5 | B95: 17 | C95: 75 | D95: 9 | E95: 30 | F95: 786694 | G95: 786600 | H95: 94
A96: 5 | B96: 17 | C96: 76 | D96: 10 | E96: 29 | F96: 797325 | G96: 797400 | H96: -75
A97: 5 | B97: 17 | C97: 77 | D97: 11 | E97: 30 | F97: 807956 | G97: 807840 | H97: 116
A98: 5 | B98: 17 | C98: 78 | D98: 12 | E98: 29 | F98: 818587 | G98: 818640 | H98: -53
A99: 5 | B99: 17 | C99: 79 | D99: 13 | E99: 30 | F99: 829218 | G99: 829080 | H99: 138
A100: 5 | B100: 17 | C100: 80 | D100: 14 | E100: 29 | F100: 839849 | G100: 839880 | H100: -31
A101: 5 | B101: 17 | C101: 81 | D101: 15 | E101: 30 | F101: 850480 | G101: 850320 | H101: 160
A102: 5 | B102: 17 | C102: 82 | D102: 16 | E102: 29 | F102: 861111 | G102: 861120 | H102: -9
A103: 5 | B103: 17 | C103: 83 | D103: 17 | E103: 30 | F103: 871742 | G103: 871560 | H103: 182
A104: 6 | B104: 15 | C104: 84 | D104: 1 | E104: 30 | F104: 882373 | G104: 882360 | H104: 13
A105: 6 | B105: 15 | C105: 85 | D105: 2 | E105: 29 | F105: 893004 | G105: 893160 | H105: -156
A106: 6 | B106: 15 | C106: 86 | D106: 3 | E106: 30 | F106: 903635 | G106: 903600 | H106: 35
A107: 6 | B107: 15 | C107: 87 | D107: 4 | E107: 29 | F107: 914266 | G107: 914400 | H107: -134
A108: 6 | B108: 15 | C108: 88 | D108: 5 | E108: 30 | F108: 924897 | G108: 924840 | H108: 57
A109: 6 | B109: 15 | C109: 89 | D109: 6 | E109: 29 | F109: 935528 | G109: 935640 | H109: -112
A110: 6 | B110: 15 | C110: 90 | D110: 7 | E110: 30 | F110: 946159 | G110: 946080 | H110: 79
A111: 6 | B111: 15 | C111: 91 | D111: 8 | E111: 29 | F111: 956790 | G111: 956880 | H111: -90
A112: 6 | B112: 15 | C112: 92 | D112: 9 | E112: 30 | F112: 967421 | G112: 967320 | H112: 101
A113: 6 | B113: 15 | C113: 93 | D113: 10 | E113: 29 | F113: 978052 | G113: 978120 | H113: -68
A114: 6 | B114: 15 | C114: 94 | D114: 11 | E114: 30 | F114: 988683 | G114: 988560 | H114: 123
A115: 6 | B115: 15 | C115: 95 | D115: 12 | E115: 29 | F115: 999314 | G115: 999360 | H115: -46
A116: 6 | B116: 15 | C116: 96 | D116: 13 | E116: 30 | F116: 1009945 | G116: 1009800 | H116: 145
A117: 6 | B117: 15 | C117: 97 | D117: 14 | E117: 29 | F117: 1020576 | G117: 1020600 | H117: -24
A118: 6 | B118: 15 | C118: 98 | D118: 15 | E118: 30 | F118: 1031207 | G118: 1031040 | H118: 167
A119: 7 | B119: 17 | C119: 99 | D119: 1 | E119: 30 | F119: 1041838 | G119: 1041840 | H119: -2
A120: 7 | B120: 17 | C120: 100 | D120: 2 | E120: 29 | F120: 1052469 | G120: 1052640 | H120: -171
A121: 7 | B121: 17 | C121: 101 | D121: 3 | E121: 30 | F121: 1063100 | G121: 1063080 | H121: 20
A122: 7 | B122: 17 | C122: 102 | D122: 4 | E122: 29 | F122: 1073731 | G122: 1073880 | H122: -149
A123: 7 | B123: 17 | C123: 103 | D123: 5 | E123: 30 | F123: 1084362 | G123: 1084320 | H123: 42
A124: 7 | B124: 17 | C124: 104 | D124: 6 | E124: 29 | F124: 1094993 | G124: 1095120 | H124: -127
A125: 7 | B125: 17 | C125: 105 | D125: 7 | E125: 30 | F125: 1105624 | G125: 1105560 | H125: 64
A126: 7 | B126: 17 | C126: 106 | D126: 8 | E126: 29 | F126: 1116255 | G126: 1116360 | H126: -105
A127: 7 | B127: 17 | C127: 107 | D127: 9 | E127: 30 | F127: 1126886 | G127: 1126800 | H127: 86
A128: 7 | B128: 17 | C128: 108 | D128: 10 | E128: 29 | F128: 1137517 | G128: 1137600 | H128: -83
A129: 7 | B129: 17 | C129: 109 | D129: 11 | E129: 30 | F129: 1148148 | G129: 1148040 | H129: 108
A130: 7 | B130: 17 | C130: 110 | D130: 12 | E130: 29 | F130: 1158779 | G130: 1158840 | H130: -61
A131: 7 | B131: 17 | C131: 111 | D131: 13 | E131: 30 | F131: 1169410 | G131: 1169280 | H131: 130
A132: 7 | B132: 17 | C132: 112 | D132: 14 | E132: 29 | F132: 1180041 | G132: 1180080 | H132: -39
A133: 7 | B133: 17 | C133: 113 | D133: 15 | E133: 30 | F133: 1190672 | G133: 1190520 | H133: 152
A134: 7 | B134: 17 | C134: 114 | D134: 16 | E134: 29 | F134: 1201303 | G134: 1201320 | H134: -17
A135: 7 | B135: 17 | C135: 115 | D135: 17 | E135: 30 | F135: 1211934 | G135: 1211760 | H135: 174
A136: 8 | B136: 17 | C136: 116 | D136: 1 | E136: 30 | F136: 1222565 | G136: 1222560 | H136: 5
A137: 8 | B137: 17 | C137: 117 | D137: 2 | E137: 29 | F137: 1233196 | G137: 1233360 | H137: -164
A138: 8 | B138: 17 | C138: 118 | D138: 3 | E138: 30 | F138: 1243827 | G138: 1243800 | H138: 27
A139: 8 | B139: 17 | C139: 119 | D139: 4 | E139: 29 | F139: 1254458 | G139: 1254600 | H139: -142
A140: 8 | B140: 17 | C140: 120 | D140: 5 | E140: 30 | F140: 1265089 | G140: 1265040 | H140: 49
A141: 8 | B141: 17 | C141: 121 | D141: 6 | E141: 29 | F141: 1275720 | G141: 1275840 | H141: -120
A142: 8 | B142: 17 | C142: 122 | D142: 7 | E142: 30 | F142: 1286351 | G142: 1286280 | H142: 71
A143: 8 | B143: 17 | C143: 123 | D143: 8 | E143: 29 | F143: 1296982 | G143: 1297080 | H143: -98
A144: 8 | B144: 17 | C144: 124 | D144: 9 | E144: 30 | F144: 1307613 | G144: 1307520 | H144: 93
A145: 8 | B145: 17 | C145: 125 | D145: 10 | E145: 29 | F145: 1318244 | G145: 1318320 | H145: -76
A146: 8 | B146: 17 | C146: 126 | D146: 11 | E146: 30 | F146: 1328875 | G146: 1328760 | H146: 115
A147: 8 | B147: 17 | C147: 127 | D147: 12 | E147: 29 | F147: 1339506 | G147: 1339560 | H147: -54
A148: 8 | B148: 17 | C148: 128 | D148: 13 | E148: 30 | F148: 1350137 | G148: 1350000 | H148: 137
A149: 8 | B149: 17 | C149: 129 | D149: 14 | E149: 29 | F149: 1360768 | G149: 1360800 | H149: =F149-G149 -> -32
A150: =IF(D150=1,IF(A149=Yerms,1,A149+1),A149) -> 8 | B150: =IF(MOD(A150,3)=0,15,17) -> 17 | C150: 130 | D150: =IF(D149=B149,1,D149+1) -> 15 | E150: =IF(MOD(D150,2)=1,30,29) -> 30 | F150: 1371399 | G150: =G149+E149*PPD -> 1371240 | H150: 159
A151: 8 | B151: 17 | C151: =C150+1 -> 131 | D151: 16 | E151: 29 | F151: =F150+PPM -> 1382030 | G151: 1382040 | H151: -10
A152: 8 | B152: 17 | C152: 132 | D152: 17 | E152: 30 | F152: 1392661 | G152: 1392480 | H152: 181
A153: 9 | B153: 15 | C153: 133 | D153: 1 | E153: 30 | F153: 1403292 | G153: 1403280 | H153: 12
A154: 9 | B154: 15 | C154: 134 | D154: 2 | E154: 29 | F154: 1413923 | G154: 1414080 | H154: -157
A155: 9 | B155: 15 | C155: 135 | D155: 3 | E155: 30 | F155: 1424554 | G155: 1424520 | H155: 34
A156: 9 | B156: 15 | C156: 136 | D156: 4 | E156: 29 | F156: 1435185 | G156: 1435320 | H156: -135
A157: 9 | B157: 15 | C157: 137 | D157: 5 | E157: 30 | F157: 1445816 | G157: 1445760 | H157: 56
A158: 9 | B158: 15 | C158: 138 | D158: 6 | E158: 29 | F158: 1456447 | G158: 1456560 | H158: -113
A159: 9 | B159: 15 | C159: 139 | D159: 7 | E159: 30 | F159: 1467078 | G159: 1467000 | H159: 78
A160: 9 | B160: 15 | C160: 140 | D160: 8 | E160: 29 | F160: 1477709 | G160: 1477800 | H160: -91
A161: 9 | B161: 15 | C161: 141 | D161: 9 | E161: 30 | F161: 1488340 | G161: 1488240 | H161: 100
A162: 9 | B162: 15 | C162: 142 | D162: 10 | E162: 29 | F162: 1498971 | G162: 1499040 | H162: -69
A163: 9 | B163: 15 | C163: 143 | D163: 11 | E163: 30 | F163: 1509602 | G163: 1509480 | H163: 122
A164: 9 | B164: 15 | C164: 144 | D164: 12 | E164: 29 | F164: 1520233 | G164: 1520280 | H164: -47
A165: 9 | B165: 15 | C165: 145 | D165: 13 | E165: 30 | F165: 1530864 | G165: 1530720 | H165: 144
A166: 9 | B166: 15 | C166: 146 | D166: 14 | E166: 29 | F166: 1541495 | G166: 1541520 | H166: -25
A167: 9 | B167: 15 | C167: 147 | D167: 15 | E167: 30 | F167: 1552126 | G167: 1551960 | H167: 166
A168: 10 | B168: 17 | C168: 148 | D168: 1 | E168: 30 | F168: 1562757 | G168: 1562760 | H168: -3
A169: 10 | B169: 17 | C169: 149 | D169: 2 | E169: 29 | F169: 1573388 | G169: 1573560 | H169: -172
A170: 10 | B170: 17 | C170: 150 | D170: 3 | E170: 30 | F170: 1584019 | G170: 1584000 | H170: 19
A171: 10 | B171: 17 | C171: 151 | D171: 4 | E171: 29 | F171: 1594650 | G171: 1594800 | H171: -150
A172: 10 | B172: 17 | C172: 152 | D172: 5 | E172: 30 | F172: 1605281 | G172: 1605240 | H172: 41
A173: 10 | B173: 17 | C173: 153 | D173: 6 | E173: 29 | F173: 1615912 | G173: 1616040 | H173: -128
A174: 10 | B174: 17 | C174: 154 | D174: 7 | E174: 30 | F174: 1626543 | G174: 1626480 | H174: 63
A175: 10 | B175: 17 | C175: 155 | D175: 8 | E175: 29 | F175: 1637174 | G175: 1637280 | H175: -106
A176: 10 | B176: 17 | C176: 156 | D176: 9 | E176: 30 | F176: 1647805 | G176: 1647720 | H176: 85
A177: 10 | B177: 17 | C177: 157 | D177: 10 | E177: 29 | F177: 1658436 | G177: 1658520 | H177: -84
A178: 10 | B178: 17 | C178: 158 | D178: 11 | E178: 30 | F178: 1669067 | G178: 1668960 | H178: 107
A179: 10 | B179: 17 | C179: 159 | D179: 12 | E179: 29 | F179: 1679698 | G179: 1679760 | H179: -62
A180: 10 | B180: 17 | C180: 160 | D180: 13 | E180: 30 | F180: 1690329 | G180: 1690200 | H180: 129
A181: 10 | B181: 17 | C181: 161 | D181: 14 | E181: 29 | F181: 1700960 | G181: 1701000 | H181: -40
A182: 10 | B182: 17 | C182: 162 | D182: 15 | E182: 30 | F182: 1711591 | G182: 1711440 | H182: 151
A183: 10 | B183: 17 | C183: 163 | D183: 16 | E183: 29 | F183: 1722222 | G183: 1722240 | H183: -18
A184: 10 | B184: 17 | C184: 164 | D184: 17 | E184: 30 | F184: 1732853 | G184: 1732680 | H184: 173
A185: 11 | B185: 17 | C185: 165 | D185: 1 | E185: 30 | F185: 1743484 | G185: 1743480 | H185: 4
A186: 11 | B186: 17 | C186: 166 | D186: 2 | E186: 29 | F186: 1754115 | G186: 1754280 | H186: -165
A187: 11 | B187: 17 | C187: 167 | D187: 3 | E187: 30 | F187: 1764746 | G187: 1764720 | H187: 26
A188: 11 | B188: 17 | C188: 168 | D188: 4 | E188: 29 | F188: 1775377 | G188: 1775520 | H188: -143
A189: 11 | B189: 17 | C189: 169 | D189: 5 | E189: 30 | F189: 1786008 | G189: 1785960 | H189: 48
A190: 11 | B190: 17 | C190: 170 | D190: 6 | E190: 29 | F190: 1796639 | G190: 1796760 | H190: -121
A191: 11 | B191: 17 | C191: 171 | D191: 7 | E191: 30 | F191: 1807270 | G191: 1807200 | H191: 70
A192: 11 | B192: 17 | C192: 172 | D192: 8 | E192: 29 | F192: 1817901 | G192: 1818000 | H192: -99
A193: 11 | B193: 17 | C193: 173 | D193: 9 | E193: 30 | F193: 1828532 | G193: 1828440 | H193: 92
A194: 11 | B194: 17 | C194: 174 | D194: 10 | E194: 29 | F194: 1839163 | G194: 1839240 | H194: -77
A195: 11 | B195: 17 | C195: 175 | D195: 11 | E195: 30 | F195: 1849794 | G195: 1849680 | H195: 114
A196: 11 | B196: 17 | C196: 176 | D196: 12 | E196: 29 | F196: 1860425 | G196: 1860480 | H196: -55
A197: 11 | B197: 17 | C197: 177 | D197: 13 | E197: 30 | F197: 1871056 | G197: 1870920 | H197: 136
A198: 11 | B198: 17 | C198: 178 | D198: 14 | E198: 29 | F198: 1881687 | G198: 1881720 | H198: -33
A199: 11 | B199: 17 | C199: 179 | D199: 15 | E199: 30 | F199: 1892318 | G199: 1892160 | H199: 158
A200: 11 | B200: 17 | C200: 180 | D200: 16 | E200: 29 | F200: 1902949 | G200: 1902960 | H200: -11
A201: 11 | B201: 17 | C201: 181 | D201: 17 | E201: 30 | F201: 1913580 | G201: 1913400 | H201: 180
... 556 more rows

Sheet Yerms
A1: Month in Cycle | B1: Yerm | C1: New Yerm Moment | D1: Elapsed | E1: Difference | F1: Top | G1: Yerm Start
A2: =StartMonth -> 1 | B2: 1 | C2: =(A2-1)*PPM -> 0 | D2: =LOOKUP(A2,Data!C$21:C$757,Data!G$21:G$757) -> 0 | E2: =IF(AND(StartMonth>15,MOD(B2,3)=0),NA(),C2-D2) -> 0 | F2: 550 | G2: =A2-StartMonth+1 -> 1
A3: =A2+IF(MOD(B2,3)=0,15,17) -> 18 | B3: =MOD(B2,Yerms)+1 -> 2 | C3: =(A3-1)*PPM -> 180727 | D3: =LOOKUP(A3,Data!C$21:C$757,Data!G$21:G$757) -> 180720 | E3: 7 | F3: =F2 -> 550 | G3: 18
A4: =A3+IF(MOD(B3,3)=0,15,17) -> 35 | B4: =MOD(B3,Yerms)+1 -> 3 | C4: =(A4-1)*PPM -> 361454 | D4: =LOOKUP(A4,Data!C$21:C$757,Data!G$21:G$757) -> 361440 | E4: 14 | F4: =F3 -> 550 | G4: 35
A5: 50 | B5: 4 | C5: 520919 | D5: =LOOKUP(A5,Data!C$21:C$757,Data!G$21:G$757) -> 520920 | E5: -1 | F5: 550 | G5: 50
A6: 67 | B6: 5 | C6: 701646 | D6: =LOOKUP(A6,Data!C$21:C$757,Data!G$21:G$757) -> 701640 | E6: 6 | F6: 550 | G6: 67
A7: 84 | B7: 6 | C7: 882373 | D7: =LOOKUP(A7,Data!C$21:C$757,Data!G$21:G$757) -> 882360 | E7: 13 | F7: 550 | G7: 84
A8: 99 | B8: 7 | C8: 1041838 | D8: =LOOKUP(A8,Data!C$21:C$757,Data!G$21:G$757) -> 1041840 | E8: -2 | F8: 550 | G8: 99
A9: 116 | B9: 8 | C9: 1222565 | D9: =LOOKUP(A9,Data!C$21:C$757,Data!G$21:G$757) -> 1222560 | E9: 5 | F9: 550 | G9: 116
A10: 133 | B10: 9 | C10: 1403292 | D10: =LOOKUP(A10,Data!C$21:C$757,Data!G$21:G$757) -> 1403280 | E10: 12 | F10: 550 | G10: 133
A11: 148 | B11: 10 | C11: 1562757 | D11: =LOOKUP(A11,Data!C$21:C$757,Data!G$21:G$757) -> 1562760 | E11: -3 | F11: 550 | G11: 148
A12: 165 | B12: 11 | C12: 1743484 | D12: =LOOKUP(A12,Data!C$21:C$757,Data!G$21:G$757) -> 1743480 | E12: 4 | F12: 550 | G12: 165
A13: 182 | B13: 12 | C13: 1924211 | D13: =LOOKUP(A13,Data!C$21:C$757,Data!G$21:G$757) -> 1924200 | E13: 11 | F13: 550 | G13: 182
A14: 197 | B14: 13 | C14: 2083676 | D14: =LOOKUP(A14,Data!C$21:C$757,Data!G$21:G$757) -> 2083680 | E14: -4 | F14: 550 | G14: 197
A15: 214 | B15: 14 | C15: 2264403 | D15: =LOOKUP(A15,Data!C$21:C$757,Data!G$21:G$757) -> 2264400 | E15: 3 | F15: 550 | G15: 214
A16: 231 | B16: 15 | C16: 2445130 | D16: =LOOKUP(A16,Data!C$21:C$757,Data!G$21:G$757) -> 2445120 | E16: 10 | F16: 550 | G16: 231
A17: 246 | B17: 16 | C17: 2604595 | D17: =LOOKUP(A17,Data!C$21:C$757,Data!G$21:G$757) -> 2604600 | E17: -5 | F17: 550 | G17: 246
A18: 263 | B18: 17 | C18: 2785322 | D18: =LOOKUP(A18,Data!C$21:C$757,Data!G$21:G$757) -> 2785320 | E18: 2 | F18: 550 | G18: 263
A19: 280 | B19: 18 | C19: 2966049 | D19: =LOOKUP(A19,Data!C$21:C$757,Data!G$21:G$757) -> 2966040 | E19: 9 | F19: 550 | G19: 280
A20: 295 | B20: 19 | C20: 3125514 | D20: =LOOKUP(A20,Data!C$21:C$757,Data!G$21:G$757) -> 3125520 | E20: -6 | F20: 550 | G20: 295
A21: 312 | B21: 20 | C21: 3306241 | D21: =LOOKUP(A21,Data!C$21:C$757,Data!G$21:G$757) -> 3306240 | E21: 1 | F21: 550 | G21: 312
A22: 329 | B22: 21 | C22: 3486968 | D22: =LOOKUP(A22,Data!C$21:C$757,Data!G$21:G$757) -> 3486960 | E22: 8 | F22: 550 | G22: 329
A23: 344 | B23: 22 | C23: 3646433 | D23: =LOOKUP(A23,Data!C$21:C$757,Data!G$21:G$757) -> 3646440 | E23: -7 | F23: 550 | G23: 344
A24: =A23+IF(MOD(B23,3)=0,15,17) -> 361 | B24: =MOD(B23,Yerms)+1 -> 1 | C24: =(A24-1)*PPM -> 3827160 | D24: =LOOKUP(A24,Data!C$21:C$757,Data!G$21:G$757) -> 3827160 | E24: 0 | F24: =F23 -> 550 | G24: =A24-StartMonth+1 -> 361
A25: 378 | B25: 2 | C25: 4007887 | D25: =LOOKUP(A25,Data!C$21:C$757,Data!G$21:G$757) -> 4007880 | E25: 7 | F25: 550 | G25: 378
A26: 395 | B26: 3 | C26: 4188614 | D26: =LOOKUP(A26,Data!C$21:C$757,Data!G$21:G$757) -> 4188600 | E26: 14 | F26: 550 | G26: 395
A27: 410 | B27: 4 | C27: 4348079 | D27: =LOOKUP(A27,Data!C$21:C$757,Data!G$21:G$757) -> 4348080 | E27: -1 | F27: 550 | G27: 410
A28: 427 | B28: 5 | C28: 4528806 | D28: =LOOKUP(A28,Data!C$21:C$757,Data!G$21:G$757) -> 4528800 | E28: 6 | F28: 550 | G28: 427
A29: 444 | B29: 6 | C29: 4709533 | D29: =LOOKUP(A29,Data!C$21:C$757,Data!G$21:G$757) -> 4709520 | E29: 13 | F29: 550 | G29: 444
A30: 459 | B30: 7 | C30: 4868998 | D30: =LOOKUP(A30,Data!C$21:C$757,Data!G$21:G$757) -> 4869000 | E30: -2 | F30: 550 | G30: 459
A31: 476 | B31: 8 | C31: 5049725 | D31: =LOOKUP(A31,Data!C$21:C$757,Data!G$21:G$757) -> 5049720 | E31: 5 | F31: 550 | G31: 476
A32: 493 | B32: 9 | C32: 5230452 | D32: =LOOKUP(A32,Data!C$21:C$757,Data!G$21:G$757) -> 5230440 | E32: 12 | F32: 550 | G32: 493
A33: 508 | B33: 10 | C33: 5389917 | D33: =LOOKUP(A33,Data!C$21:C$757,Data!G$21:G$757) -> 5389920 | E33: -3 | F33: 550 | G33: 508
A34: 525 | B34: 11 | C34: 5570644 | D34: =LOOKUP(A34,Data!C$21:C$757,Data!G$21:G$757) -> 5570640 | E34: =IF(AND(StartMonth>15,MOD(B34,3)=0),NA(),C34-D34) -> 4 | F34: 550 | G34: 525
A35: 542 | B35: 12 | C35: 5751371 | D35: =LOOKUP(A35,Data!C$21:C$757,Data!G$21:G$757) -> 5751360 | E35: 11 | F35: 550 | G35: 542
A36: 557 | B36: 13 | C36: 5910836 | D36: =LOOKUP(A36,Data!C$21:C$757,Data!G$21:G$757) -> 5910840 | E36: -4 | F36: 550 | G36: 557
A37: 574 | B37: 14 | C37: 6091563 | D37: =LOOKUP(A37,Data!C$21:C$757,Data!G$21:G$757) -> 6091560 | E37: 3 | F37: 550 | G37: 574
A38: 591 | B38: 15 | C38: 6272290 | D38: =LOOKUP(A38,Data!C$21:C$757,Data!G$21:G$757) -> 6272280 | E38: 10 | F38: 550 | G38: 591
A39: 606 | B39: 16 | C39: 6431755 | D39: =LOOKUP(A39,Data!C$21:C$757,Data!G$21:G$757) -> 6431760 | E39: -5 | F39: 550 | G39: 606
A40: 623 | B40: 17 | C40: 6612482 | D40: =LOOKUP(A40,Data!C$21:C$757,Data!G$21:G$757) -> 6612480 | E40: 2 | F40: 550 | G40: 623
A41: 640 | B41: 18 | C41: 6793209 | D41: =LOOKUP(A41,Data!C$21:C$757,Data!G$21:G$757) -> 6793200 | E41: 9 | F41: 550 | G41: 640
A42: 655 | B42: 19 | C42: 6952674 | D42: =LOOKUP(A42,Data!C$21:C$757,Data!G$21:G$757) -> 6952680 | E42: -6 | F42: 550 | G42: 655
A43: 672 | B43: 20 | C43: 7133401 | D43: =LOOKUP(A43,Data!C$21:C$757,Data!G$21:G$757) -> 7133400 | E43: 1 | F43: 550 | G43: 672
A44: 689 | B44: 21 | C44: 7314128 | D44: =LOOKUP(A44,Data!C$21:C$757,Data!G$21:G$757) -> 7314120 | E44: 8 | F44: 550 | G44: 689
A45: 704 | B45: 22 | C45: 7473593 | D45: =LOOKUP(A45,Data!C$21:C$757,Data!G$21:G$757) -> 7473600 | E45: -7 | F45: 550 | G45: 704
A46: 721 | B46: 1 | C46: 7654320 | D46: =LOOKUP(A46,Data!C$21:C$757,Data!G$21:G$757) -> 7654320 | E46: 0 | F46: 550 | G46: 721

Sheet Rules
A1: odd-numbered months have 30 days, even numbered months have 29 days
A2: yerms have 17 months (9 full, 8 deficient) or 15 months (8 full, 7 deficient)
A3: length of 17-month yerm = | B3: =(9*30)+(8*29) -> 502 | C3: days
A4: length of 15-month yerm = | B4: =(8*30)+(7*29) -> 443 | C4: days
A5: yerms are numbered from yerm #1
A6: if yerm# is divisible by 3 then it has 15 months, otherwise it has 17 months
A7: repeating pattern = 17+17+15 = | B7: =17+17+15 -> 49 | C7: months
A8: which is repeated | B8: =INT(MPC/B7) -> 7 | C8: times
A9: to make a subtotal of | B9: =3*B8 -> 21 | C9: yerms
A10: full cycle has | B10: =Yerms -> 22 | C10: yerms
A11: ="The last yerm #"&Yerms&" has 17 months." -> The last yerm #22 has 17 months.

Sheet Zoom
A1: 0 | B1: = Current Zoom Level
A2: Level | B2: Months | C2: MajorTick | D2: MinorTick | E2: Shift | F2: Connect
A3: =ROW()-3 -> 0 | B3: 720 | C3: 49 | D3: 7 | F3: FALSE
A4: 1 | B4: 392 | C4: 49 | D4: 7 | E4: =B5 -> 196 | F4: FALSE
A5: 2 | B5: 196 | C5: 14 | D5: 2 | E5: =B6 -> 98 | F5: FALSE
A6: 3 | B6: 98 | C6: 7 | D6: 1 | E6: 49 | F6: TRUE
A7: 4 | B7: 49 | C7: 2 | D7: 1 | E7: 49 | F7: TRUE

Sheet Labels
A1: Month | B1: Hours | C1: ="Span "&B2-B26&"h" -> Span 72h
A2: 721 | B2: 36
A3: =A2 -> 721 | B3: =B2-3 -> 33
A4: =A3 -> 721 | B4: =B3-3 -> 30
A5: =A4 -> 721 | B5: 27
A6: =A5 -> 721 | B6: 24
A7: 721 | B7: 21
A8: 721 | B8: 18
A9: 721 | B9: 15
A10: 721 | B10: 12
A11: 721 | B11: 9
A12: 721 | B12: 6
A13: 721 | B13: 3
A14: 721 | B14: 0
A15: 721 | B15: -3
A16: 721 | B16: -6
A17: 721 | B17: -9
A18: 721 | B18: -12
A19: 721 | B19: -15
A20: 721 | B20: -18
A21: 721 | B21: -21
A22: 721 | B22: -24
A23: 721 | B23: -27
A24: 721 | B24: -30
A25: 721 | B25: -33
A26: 721 | B26: -36
